Cogmind - Beta 17.1 @@@ ROGUE MODE // 2026.08.23 @ 18:28:45 Player: H3-MLN Result: Smashed by cave-in Performance ------------- Evolutions (9) 4500 Regions Visited (20) 4000 Robots Destroyed (611) 3055 Value Destroyed (30409) 30409 Prototype IDs (112) 2240 Alien Tech Used (5) 1000 Bonus (46198) 46198 TOTAL SCORE: 91402 Bonus ------- Triggered High Security 1000 High Alert Combat Kills 19844 Follower Combat Kills 9483 Prayed to X0-1V1 5000 Major X0-1V1 Interference 11550 Network Hubs Disabled 200 Registered with UFD 300 Met R17 at Cetus 500 Used Core Reset Matrix 3000 Met R17 at Research 2000 Friendly Fire -6679 Cogmind --------- Core Integrity 0/1270 Matter 234/300 Energy 781/1550 System Corruption 69% Temperature Critical (529) Movement Walking (195) Ox1 Location -1/Command Parts ------- > --- POWER (3) -------- Quantum Reactor > --- PROPULSION (9) --- Thunder Leg Myomer Leg Myomer Leg Improved Thunder Leg Experimental Armored Exoskeleton > --- UTILITY (8) ------ Huge Storage Unit Wyrmplate Plateshifter Experimental EM Shield > --- WEAPON (5) ------- Improved Arc Projector Enhanced Hardcell Cannon Vibroblade Vibroblade Heavy Scimitar of Distortion (fused) > --- INVENTORY (25) --- Experimental Matter Compressor (340) Experimental Melee Analysis Suite Advanced Weapon Cycler Experimental Weapon Cycler Wyrmscale Wyrmscale Wyrmscale Wyrmscale Advanced Remote Force Field Advanced Remote Force Field Long-range Proton Cannon Enhanced Hardcell Cannon Chaos Jack (31) Improved Plasma Cutter CPS Tube (1) Vibroblade Vibroblade Vibroblade Peak State ------------ > --- POWER ------------ Light Antimatter Reactor Quantum Reactor Improved Quantum Reactor > --- PROPULSION ------- Myomer Leg Myomer Leg Biometal Leg Improved Thunder Leg Experimental Armored Exoskeleton Gyrokinetic Inverter > --- UTILITY ---------- Huge Storage Unit Wyrmplate Wyrmscale Plateshifter > --- WEAPON ----------- Heavy Quantum Rifle KE Penetrator Enhanced Hardcell Cannon Enhanced Hardcell Cannon Heavy Scimitar of Distortion > --- INVENTORY -------- Experimental Matter Compressor Experimental Melee Analysis Suite Advanced Weapon Cycler Experimental Weapon Cycler Wyrmscale Wyrmscale Wyrmscale Experimental EM Shield Advanced Remote Force Field Advanced Remote Force Field Long-range Proton Cannon Improved Plasma Cutter CPS Tube Vibroblade Vibroblade Vibroblade Vibroblade Vibroblade [Rating: 247] Favorites ----------- Power Reinforced Ion Engine Engine Reinforced Ion Engine Power Core Neutrino Core Reactor Light Particle Reactor Propulsion Armored Medium Treads Treads Armored Medium Treads Leg High-density Centrium Leg Wheel Armored Huge Wheel Hover Unit Improved Gyrokinetic Inverter Flight Unit Cooled VTOL Module Utility Self-contained Transmogrifier Device Self-contained Transmogrifier Storage Huge Storage Unit Processor Experimental Targeting Computer Hackware Advanced Hacking Suite Protection Centrium Medium Armor Plating Artifact Phase Redirector Weapon Compact Tesla Bomb Launcher Energy Gun Advanced Plasma Rifle Energy Cannon Ion Burst Cannon Ballistic Gun Railgun Ballistic Cannon Heavy Flak Cannon Launcher Compact Tesla Bomb Launcher Special Weapon Plasma Flamer Impact Weapon Gravity Flail Slashing Weapon Carbide Saw Piercing Weapon Makeshift Spear Special Melee Weapon Datajack Build | -11 -10 -10 -9 -9 -8 -7 -7 -7 -7 -5 -4 -4 -4 -4 -4 -3 -3 -2 -1 -1 ------- Run | Yrd Mat Min Mat Min Mat Fac Sto Rec Scr Fac Fac Ext Cet Arc Hub Res Qua Res Acc Com Slots Evolved 18 | . . . 2 . 2 2 . . . 4 2 . . . . 2 . 2 2 . Power 2 | . . . . . . . . . . 1 . . . . . . . 1 . . Propulsion 7 | . . . 1 . 1 1 . . . 1 1 . . . . 1 . 1 . . Utility 6 | . . . . . 1 . . . . 1 1 . . . . 1 . . 2 . Weapon 3 | . . . 1 . . 1 . . . 1 . . . . . . . . . . Parts Attached 235 | 7 7 5 9 . 4 6 11 1 10 6 13 16 11 2 5 14 30 17 19 42 Power 28 | 2 . 1 1 . . 1 3 . . . 1 2 1 . 1 2 2 2 2 7 Engine 7 | 2 . 1 1 . . . 2 . . . . . . . . . . . . 1 Core 5 | . . . . . . 1 1 . . . . . . . 1 . 1 . 1 . Reactor 16 | . . . . . . . . . . . 1 2 1 . . 2 1 2 1 6 Propulsion 47 | 2 . . 5 . 1 1 1 . 2 1 2 6 2 . 2 3 6 3 . 10 Treads 16 | 2 . . 4 . 1 . 1 . . . 1 1 2 . . . 3 1 . . Leg 18 | . . . . . . . . . . . . 3 . . . 1 3 2 . 9 Wheel 1 | . . . . . . 1 . . . . . . . . . . . . . . Hover 8 | . . . 1 . . . . . . . . 2 . . 2 2 . . . 1 Flight 4 | . . . . . . . . . 2 1 1 . . . . . . . . . Utility 81 | 1 3 1 . . 2 2 2 . 3 3 6 3 5 1 . 5 16 7 10 11 Device 41 | . 1 . . . 1 1 1 . 1 3 2 2 1 1 . 3 11 3 6 4 Storage 9 | 1 2 1 . . 1 . . . 1 . . 1 . . . . . 1 . 1 Processor 9 | . . . . . . . . . 1 . . . . . . 1 2 . 4 1 Hackware 7 | . . . . . . 1 1 . . . 3 . . . . 1 1 . . . Protection 14 | . . . . . . . . . . . 1 . 4 . . . 1 3 . 5 Artifact 1 | . . . . . . . . . . . . . . . . . 1 . . . Weapon 79 | 2 4 3 3 . 1 2 5 1 5 2 4 5 3 1 2 4 6 5 7 14 Energy Gun 28 | 1 2 1 2 . 1 2 1 1 1 . . 1 1 1 1 . 2 2 3 5 Energy Cannon 5 | . . . . . . . . . 1 . . . . . . 1 . 1 1 1 Ballistic Gun 13 | 1 1 1 . . . . 1 . . . 2 . 1 . . . 2 1 1 2 Ballistic Cannon 6 | . . . . . . . 1 . . . 1 1 . . . 1 . . . 2 Launcher 8 | . 1 1 1 . . . . . 1 2 . . 1 . . . . . . 1 Special Weapon 6 | . . . . . . . . . 1 . . . . . 1 2 . 1 1 . Impact Weapon 3 | . . . . . . . 1 . 1 . . 1 . . . . . . . . Slashing Weapon 6 | . . . . . . . . . . . . 1 . . . . 1 . 1 3 Piercing Weapon 2 | . . . . . . . . . . . 1 1 . . . . . . . . Special Melee Weapon 2 | . . . . . . . 1 . . . . . . . . . 1 . . . Unidentified Prototypes 44 | . . . 2 . 1 . 2 . 1 2 1 2 4 . . 3 19 3 3 1 Corrupted Parts 12 | . . . . . . . . . . . . 3 4 . . 1 1 1 . 2 System Corruption 91 | . . . . . . . . . . . . 19 26 . . 10 6 11 . 19 Parts Lost 70 | . . 3 1 . 2 1 1 . 3 . 1 14 4 . 2 1 2 4 . 31 Power 13 | . . 1 . . 1 . . . . . . 2 . . 1 . . . . 8 Propulsion 24 | . . . 1 . 1 . . . 2 . 1 6 2 . . . 1 . . 10 Utility 10 | . . . . . . . . . . . . 3 . . . . 1 2 . 4 Weapon 23 | . . 2 . . . 1 1 . 1 . . 3 2 . 1 1 . 2 . 9 Highest Loss Streak 13 | . . 3 1 . 1 1 1 . 3 . 1 4 6 . 2 1 2 3 . 13 To Critical Strikes 5 | . . . . . . . . . 2 . 1 . 2 . . . . . . . Average Backups 18 | . 11 15 16 19 19 19 22 20 19 19 21 21 21 20 20 19 19 18 20 19 Power . | . . . . . . . . 1 . . . . . . . . . . . . Propulsion 1 | . . 1 2 2 1 2 3 5 4 1 . 1 . 2 2 2 . . . . Utility 7 | . 1 3 5 9 7 6 9 8 7 9 8 7 8 8 8 8 10 10 10 10 Weapon 6 | . 9 10 7 7 8 10 8 5 3 4 7 8 8 6 6 4 4 4 7 7 Tool/Special . | . . . . . . . . . . . . . . . . . . . . . Unused Backups 66 | . . 1 11 . 2 . 9 5 16 . 1 1 2 . . 4 2 1 6 5 Power 5 | . . . 3 . . . . . 2 . . . . . . . . . . . Propulsion 9 | . . . 4 . . . 2 . 2 . . . . . . . 1 . . . Utility 27 | . . . 1 . . . 5 5 6 . . . 1 . . 2 . 1 3 3 Weapon 25 | . . 1 3 . 2 . 2 . 6 . 1 1 1 . . 2 1 . 3 2 Tool/Special . | . . . . . . . . . . . . . . . . . . . . . Average Slot Usage (%) 90 | . 96 99 99 99 91 89 84 87 92 85 90 86 84 94 92 95 93 84 90 66 Engine 4 | . 14 13 11 11 6 . 4 7 . . . . . . . . . . . . Core 1 | . . . . . . 6 2 . 2 4 1 2 . . 3 4 . . . . Reactor 3 | . . . . . . . . . 4 . 6 5 9 10 5 3 7 10 11 10 Treads 20 | . 28 28 25 32 30 27 23 26 31 19 26 20 7 . . . 4 11 4 1 Leg 3 | . . . . . . . . . . . . . 4 . . . 16 15 24 16 Hover 4 | . . . 6 . . . . . . . . 7 12 31 31 33 9 . . 2 Device 13 | . 8 14 11 11 18 14 14 15 9 16 15 14 10 19 21 19 15 14 22 8 Storage 7 | . 15 14 11 11 9 7 7 7 7 5 5 5 5 5 5 4 4 5 4 4 Processor 1 | . . . . . . . . . 4 . . . . . . . 3 1 3 1 Protection 1 | . . . . . . . . . . . 3 4 8 1 . 3 . 1 . 4 Energy Gun 7 | . 13 24 1 . 1 18 15 7 2 5 . 1 4 22 22 17 18 9 8 6 Energy Cannon 3 | . . . . . . . 1 5 18 6 . . . . . 2 . 1 3 1 Ballistic Gun 2 | . 14 1 . . . . 3 . . 1 6 2 3 . . . 3 1 . 3 Ballistic Cannon 4 | . . 2 22 11 1 . 4 . . . 6 6 4 . . . . . . 1 Launcher 4 | . . . 5 11 18 10 . . 1 11 9 9 8 3 . . . 3 4 . Impact Weapon 1 | . . . . 4 6 . 2 3 3 . . 1 3 . . . . 6 2 . Slashing Weapon 1 | . . . . . . . 2 12 1 . . . . . 2 1 . . . 3 Peak Build Rating 247 | 6 22 29 48 46 71 83 86 88 93 108 135 137 170 163 161 178 226 233 236 247 Average Rating 105 | 4 12 26 42 45 64 79 81 85 83 101 127 124 156 161 156 172 201 214 229 221 On Entrance 105 | . 6 22 29 45 46 65 82 85 86 74 108 135 112 163 161 158 178 215 219 236 Avg Prop Armor Cover (%) 7 | . . . 3 . . 6 . . 3 1 . 23 12 . . 3 10 8 7 9 Naked Turns . | . . . . . . . . . . . . . . . . . . . . . Heaviest Build 262 | 13 36 60 72 67 115 112 114 116 129 129 144 143 167 161 155 162 168 177 200 262 Greatest Support 258 | 40 40 42 98 92 132 181 181 180 178 201 234 234 102 104 102 118 183 258 231 228 Greatest Overweight (x) 6 | . . 1 1 . . 1 . . 1 . . 6 3 1 1 1 1 . . 1 Average Overweight (x) . | . . . . . . . . . . . . . 2 1 1 1 . . . . Largest Inventory Capacity 25 | 8 15 20 20 20 25 25 25 25 25 25 25 25 25 25 25 25 25 25 25 25 Average Capacity 22 | 6 13 19 20 20 22 25 25 25 25 25 25 25 25 25 25 25 25 25 25 25 Most Carried 25 | 1 15 20 20 20 25 23 25 25 25 25 25 25 25 25 25 25 25 25 25 25 Average Carried 21 | . 11 18 19 20 21 21 24 24 23 22 24 24 24 25 25 24 23 24 24 20 Final Capacity 25 | 8 15 20 20 20 25 25 25 25 25 25 25 25 25 25 25 25 25 25 25 25 Final Carried 25 | 1 15 20 20 20 23 22 25 25 18 25 25 25 25 25 25 25 24 25 25 18 Transmogrified Parts 198 | . 3 9 29 3 12 8 12 8 33 7 8 8 15 3 2 8 3 8 17 2 Integrity Recovered 3631 | . 47 150 660 96 263 108 402 149 532 170 88 124 238 8 6 61 21 157 331 20 Class Distribution -------------------- 22% | Tank 21% | Mutant 10% | Gunner 9% | Scavenger-Bomber 9% | Commander-Tank 7% | Bomber 4% | Commander-Gunner 3% | Commander-Mutant 3% | Scavenger-Tank Dominant Class ---------------- Mutant | -10/Materials Mutant | -10/Mines Gunner | -9/Materials Gunner | -9/Mines Mutant | -8/Materials Tank | -7/Factory Tank | -7/Storage Commander-Mutant | -7/Recycling Commander-Tank | -7/Scraptown Tank | -5/Factory Tank | -4/Factory Tank | -4/Extension Scavenger-Bomber | -4/Cetus Bomber | -4/Archives Bomber | -4/Hub_04(d) Bomber | -3/Research Scavenger-Bomber | -3/Quarantine Scavenger-Bomber | -2/Research Scavenger-Bomber | -1/Access Scavenger-Tank | -1/Command Resources | -11 -10 -10 -9 -9 -8 -7 -7 -7 -7 -5 -4 -4 -4 -4 -4 -3 -3 -2 -1 -1 ----------- Run | Yrd Mat Min Mat Min Mat Fac Sto Rec Scr Fac Fac Ext Cet Arc Hub Res Qua Res Acc Com Matter Collected 11557 | 192 237 369 2000 145 541 116 444 63 135 318 786 1110 242 28 85 305 982 363 2048 1048 Remotely . | . . . . . . . . . . . . . . . . . . . . . Salvage Created 19525 | . 339 481 1983 77 1263 116 915 91 891 539 1460 3483 568 282 75 607 1053 450 2644 2208 Parts 805 | . 28 28 133 2 58 3 45 2 36 18 59 119 19 8 5 25 45 10 69 93 Haulers Intercepted 25 | . 1 . 6 . 4 . 4 . . 1 2 1 . . . 1 1 1 3 . Recyclers Shooed 11 | . 1 1 2 . . . . . . . 4 2 . . . . . . 1 . Parts Field Recycled . | . . . . . . . . . . . . . . . . . . . . . Retrieved Matter . | . . . . . . . . . . . . . . . . . . . . . Parts Self-Destructed . | . . . . . . . . . . . . . . . . . . . . . Prevented . | . . . . . . . . . . . . . . . . . . . . . Parts Restored . | . . . . . . . . . . . . . . . . . . . . . Kills | -11 -10 -10 -9 -9 -8 -7 -7 -7 -7 -5 -4 -4 -4 -4 -4 -3 -3 -2 -1 -1 ------- Run | Yrd Mat Min Mat Min Mat Fac Sto Rec Scr Fac Fac Ext Cet Arc Hub Res Qua Res Acc Com Combat Hostiles Destroyed 467 | . 10 12 43 4 30 2 11 2 15 7 11 39 6 3 1 5 12 9 36 209 Melee 15 | . . . . . . . . . . . . 1 . . . . 1 . . 13 Guns 69 | . 7 9 . . 2 . 6 1 . . 4 4 . 1 . 2 8 4 8 13 Cannons 60 | . . . 27 2 1 . 4 . 9 2 . . . . . . 1 . 6 8 AOE 285 | . 3 3 16 2 25 . . . 6 2 4 24 . . . 1 . 5 21 173 Classes Destroyed 30 | . 5 1 5 2 2 . 1 1 5 . 1 2 . . . . 2 . 1 2 Worker 19 | . . . 4 . 2 . 2 . . . 4 7 . . . . . . . . Builder 21 | . 1 . 4 . 3 . 1 . . . 4 7 . . . . . . 1 . Tunneler 3 | . . . 1 . 1 . . . . . . 1 . . . . . . . . Hauler 25 | . 1 . 6 . 4 . 4 . . 1 2 1 . . . 1 1 1 3 . Recycler 26 | . . 1 6 . 3 . 2 . . . 2 7 . . . . . . 4 1 Carrier 18 | . . . . . . . . . . . . . . . . . . . . 18 Operator 9 | . . . 4 . 1 . 1 . . . 2 . . . . . . . . 1 Watcher 23 | . 1 . 4 . 4 . . . . . 2 . 2 . . . 1 1 5 3 Swarmer 99 | . 6 6 10 . 10 . 1 . . . 3 12 . . . . 1 7 6 37 Cutter 6 | . . . . . . . . . . . . . . . . . . . . 6 Saboteur 7 | . . . . . . . . . . . . 1 . . . . . . . 6 Grunt 134 | . 4 6 24 . 9 . 2 . . 5 1 17 . . . . 2 1 16 47 Brawler 20 | . . . 1 . 2 . 1 . . . . 1 . . . . . 1 1 13 Duelist 16 | . . . . . 2 . . . . . . 1 . . . . . . . 13 Protector 9 | . . . . . . . . 1 . . . 1 . . . . . . 1 6 Researcher 1 | . . . . . . . . . . . . . . . . . 1 . . . Sentry 35 | . . . 8 . 6 2 4 1 . 1 . 1 . 3 1 2 4 . 1 1 Demolisher 9 | . . . . 2 . . . . . . . . . . . 1 . . . 6 Specialist 18 | . . . . . . . . . . . 1 . . . . . 3 . . 14 Hunter 42 | . . . . . 1 . 2 . . . 5 4 . . . 2 . . 3 25 Programmer 44 | . . . . . . . 1 . . 1 1 . . . . . 1 . 7 33 Heavy 2 | . . . . . . . . . . . . . . . . . . . 1 1 Behemoth 1 | . . . . . . . . . . . . 1 . . . . . . . . Cetus Guard 6 | . . . . . . . . . . . . . 6 . . . . . . . Lightning 1 | . . . . . . . . . . . . . . . . . . . . 1 Alpha 7 1 | . . . . . . . . . . . . . . . . . 1 . . . Bolteater 2 | . . . . . . . . . 2 . . . . . . . . . . . Explorer 2 | . . . . . . . . . 2 . . . . . . . . . . . Guru 1 | . . . . . . . . . 1 . . . . . . . . . . . Scrapper 8 | . . . . . . . . . 8 . . . . . . . . . . . Elite 2 | . . . . . . . . . 2 . . . . . . . . . . . Assembled 2 | . . . . 2 . . . . . . . . . . . . . . . . Best Kill Streak 193 | . 4 3 9 4 9 1 5 1 15 4 8 16 5 2 1 4 5 5 11 193 Combat Bots Only 172 | . 3 3 5 4 6 1 3 1 15 4 4 8 4 2 1 4 4 5 11 172 Max Kills in Single Turn 193 | . 2 3 4 1 4 1 2 1 2 2 3 5 2 1 1 1 1 5 4 193 Gunslinging . | . . . . . . . . . . . . . . . . . . . . . Exploded 172 | . 2 3 3 1 4 . . . 2 2 2 4 . . . 1 . 5 4 172 Melee 1 | . . . . . . . . . . . . 1 . . . . 1 . . 1 Uniques/NPCs Destroyed 2 | . . . . . . . . . 1 . . . . . . 1 . . . . Triborg (-7/Scraptown) Revision 17++ (-3/Research) Combat | -11 -10 -10 -9 -9 -8 -7 -7 -7 -7 -5 -4 -4 -4 -4 -4 -3 -3 -2 -1 -1 -------- Run | Yrd Mat Min Mat Min Mat Fac Sto Rec Scr Fac Fac Ext Cet Arc Hub Res Qua Res Acc Com Hostile Shots Fired 2485 | . 35 48 76 8 77 45 133 18 105 16 112 172 41 7 8 2 63 71 129 1319 Missed 791 | . 9 8 25 1 26 15 62 7 18 4 50 65 15 2 1 . 18 17 44 404 Hits 1694 | . 26 40 51 7 51 30 71 11 87 12 62 107 26 5 7 2 45 54 85 915 Melee 46 | . . . . . . . . . 19 . . 4 . . . . . 3 . 20 Projectile 1648 | . 26 40 51 7 51 30 71 11 68 12 62 103 26 5 7 2 45 51 85 895 AOE 12 | . . . . 10 . . . . . . . . . . . . . . 1 1 Critical Strikes 91 | . . 2 2 . 2 . . . 4 1 3 6 6 . 2 . 4 2 5 52 Actively Blocked 9 | . . . . . . . . . . . . . . . 2 . 4 2 1 . Part Disruptions 6 | . . . . . . . . . . . . . . . . . 1 . . 5 Damage Taken 35628 | . 280 496 797 354 920 224 750 95 1779 320 1049 2644 701 212 172 154 895 1585 1077 21124 Core 2580 | . 47 21 97 . 138 10 72 17 195 70 53 163 . . 26 . 46 283 88 1254 Absorbed by Shields 1097 | . . . . . . . . . . . . . . . . . . . 701 396 Reduced by Siege Mode 24 | . . . . . . . . . 24 . . . . . . . . . . . Redirected to Core 256 | . . . . . . . . . . . . . . . . . 13 243 . . Redirected to Shielding 153 | . . . . . . . . . . . 5 148 . . . . . . . . Ignored by Resistances 3709 | . . . . . . . . . . . . . . . . . 587 . 469 2653 Regen/Repaired (Parts) 11301 | . . . . . . . 53 . . . . . . . . . . . . 11248 Core Remaining (%) 71 | 100 . 32 . 78 58 . . . 48 89 . . . . 71 . 95 75 . . Volleys Fired 684 | . 28 34 84 9 38 5 39 5 28 13 54 46 8 7 6 19 38 27 78 118 Largest 7 | . 2 2 3 2 2 3 4 3 4 4 4 5 3 4 3 4 7 6 3 5 Hottest 509 | . 65 110 126 80 96 236 260 280 335 335 180 227 256 344 270 326 502 509 308 434 Shots Fired 1509 | . 54 56 176 17 54 13 109 8 57 29 97 96 13 24 11 39 155 56 162 283 Gun 862 | . 52 55 8 . 12 13 80 5 7 13 51 14 3 24 11 31 136 52 92 203 Cannon 434 | . . . 144 8 6 . 29 3 40 13 16 25 . . . 6 18 2 45 79 Launcher 206 | . 2 1 24 9 36 . . . 9 3 30 57 10 . . . . 1 23 1 Special 7 | . . . . . . . . . 1 . . . . . . 2 1 1 2 . Kinetic 507 | . 28 16 144 8 6 . 40 . . 3 64 37 . . . . 33 10 . 118 Thermal 671 | . . 15 . . 12 13 51 8 42 23 3 2 3 24 11 28 113 44 137 142 Explosive 73 | . 2 1 11 . 20 . . . 9 . . 6 . . . . . 1 23 . Electromagnetic 251 | . 24 24 21 9 16 . 18 . 5 3 30 51 10 . . 9 8 . . 23 Robot Hit Streak 26 | . 11 7 14 2 10 8 21 9 13 17 5 10 3 12 4 23 16 14 26 11 Robot Miss Streak 11 | . 6 4 10 11 8 2 3 2 3 2 3 3 2 2 3 2 3 2 2 7 Penetration Max 1 | . . . . . . . 1 . . 1 1 . . . . . 1 . . 1 Secondary Targets 7 | . . 2 . . . . . . . . . . . . . . 2 . . 3 Max Gunslinging Chain 1 | . . 1 . . . . . . . . . . . . . . 1 . . 1 Shots Hit Robots 1032 | . 31 34 104 8 49 9 82 9 45 18 37 51 6 19 7 32 123 49 128 191 Core Hits 868 | . 19 20 112 12 63 5 46 7 32 14 45 116 17 7 3 10 39 26 89 186 Critical Kills 8 | . . . . . 1 . 1 . . 1 3 . . . . . . 1 . 1 Critical Parts Destroyed 17 | . . . . . 8 . 1 . . . . . . . . . 2 2 4 . Critical Strikes 56 | . 1 . 3 . 10 1 5 . . 1 3 . . 3 1 3 3 5 7 10 Burn 16 | . . . . . 1 1 . . . . . . . 3 1 1 1 1 3 4 Meltdown 1 | . . . . . . . . . . 1 . . . . . . . . . . Destroy 11 | . . . . . . . 2 . . . 3 . . . . . 2 3 . 1 Blast 3 | . . . 1 . . . 2 . . . . . . . . . . . . . Corrupt 3 | . 1 . . . . . 1 . . . . . . . . 1 . . . . Smash 14 | . . . . . 9 . . . . . . . . . . . . 1 4 . Sever 5 | . . . . . . . . . . . . . . . . . . . . 5 Impale 3 | . . . 2 . . . . . . . . . . . . 1 . . . . Melee Attacks 172 | . . . 10 . 19 . 3 2 2 1 2 9 . . 1 9 9 14 11 80 Impact 51 | . . . . . 19 . . 1 . . . . . . . . 9 12 10 . Slashing 81 | . . . . . . . . 1 . . . 2 . . 1 . . . 1 76 Piercing 26 | . . . 10 . . . . . . . . 3 . . . 9 . . . 4 Sneak Attacks 45 | . . . 8 . 4 . 3 1 2 1 2 6 . . . 9 . 3 4 2 Combat Hostiles . | . . . . . . . . . . . . . . . . . . . . . Follow-up Attacks 8 | . . . . . . . . . . . . . . . . . . 1 2 5 Damage Inflicted 303196 | . 642 733 4749 480 4846 199 1954 284 2147 772 3049 8344 1288 535 225 1403 3841 2177 10196 255332 Guns 16397 | . 434 503 97 . 240 199 1470 122 174 214 821 311 26 535 225 587 3042 1210 2415 3772 Cannons 8823 | . . . 2358 127 149 . 434 82 1053 236 253 392 . . . 40 416 84 1429 1770 Explosions 271159 | . 206 230 1795 353 3487 . 37 . 920 322 1833 7373 1262 . . 69 . 493 5530 247249 Melee 6534 | . . . 465 . 951 . . 73 . . . 268 . . . 707 370 390 769 2541 Ramming 283 | . 2 . 34 . 19 . 13 7 . . 142 . . . . . 13 . 53 . Kinetic 8738 | . 214 131 2358 127 149 . 621 . . 58 1047 661 . . . . 841 271 . 2260 Thermal 262726 | . 28 212 254 . 240 199 1024 204 1177 392 43 120 204 535 225 433 2444 1023 3844 250125 Explosive 12770 | . 178 145 1009 . 2603 . . . 842 . . 1970 . . . . . 493 5530 . Electromagnetic 12145 | . 220 245 629 353 884 . 296 . 128 322 1817 5325 1084 . . 263 173 . . 406 Impact 2498 | . . . . . 951 . . 73 . . . . . . . . 370 390 714 . Slashing 2766 | . . . . . . . . . . . . 174 . . . . . . 55 2537 Piercing 1270 | . . . 465 . . . . . . . . 94 . . . 707 . . . 4 Highest Corruption 69 | . . . 16 31 17 . 9 9 . . 1 20 46 46 46 23 23 17 2 69 Average Corruption 18 | . . . 8 16 16 . 5 9 . . 1 12 41 46 34 18 9 13 1 41 Corruption Purged . | . . . . . . . . . . . . . . . . . . . . . Corruption Blocked . | . . . . . . . . . . . . . . . . . . . . . Effects 354 | . . . 11 5 26 . 18 21 . . 8 30 23 10 17 27 33 18 3 104 Message Errors 65 | . . . 2 1 7 . 5 4 . . 1 8 2 3 4 5 7 2 . 14 Matter Fused 83 | . . . 4 . 5 . 4 9 . . 3 7 10 . 4 8 4 8 . 17 Heat Flow Errors 38 | . . . 2 3 3 . 1 2 . . 1 6 3 1 1 5 2 2 . 6 Energy Discharges 33 | . . . 1 . 1 . 2 2 . . 1 2 3 1 1 2 1 1 2 13 Parts Rejected 3 | . . . . . . . . . . . . 1 . . . . 1 . . 1 Parts Fused 1 | . . . . . . . . . . . . . . . . . . 1 . . Data Loss (minor) 29 | . . . 2 1 4 . 2 2 . . 1 1 1 . 1 1 6 1 . 6 Data Loss (major) 17 | . . . . . 1 . 1 . . . . 4 1 1 3 2 1 2 . 1 Misfires 19 | . . . . . 3 . 3 . . . 1 . 1 3 . 2 1 . 1 4 Alerts 6 | . . . . . . . . 1 . . . . 1 . . 1 2 . . 1 Misdirections 11 | . . . . . 2 . . . . . . 1 . . . . . . . 8 Weapon Failures 49 | . . . . . . . . 1 . . . . 1 1 3 1 8 1 . 33 Overload Shots 1 | . . . . . . . . . . . . . . . . 1 . . . . Overflow Damage 27501 | . . 3 235 12 677 . 3 17 64 7 116 210 41 . . . 46 49 990 25031 Projectiles 250 | . . . 13 . . . 3 . 57 . . 4 . . . . . . 87 86 Explosions 25599 | . . 3 131 12 147 . . . 7 7 88 172 41 . . . . . 262 24729 Melee 1652 | . . . 91 . 530 . . 17 . . 28 34 . . . . 46 49 641 216 Knockbacks 43 | . . . 21 1 3 . 3 . . . 3 3 . . . . 2 . 4 3 Impact 9 | . . . . . 3 . . . . . 2 . . . . . . . 4 . Kinetic 31 | . . . 20 1 . . 2 . . . 1 2 . . . . 2 . . 3 Secondary 3 | . . . 1 . . . 1 . . . . 1 . . . . . . . . Self-Inflicted Damage 1808 | . 37 . 149 . 174 . . . . . 54 134 . . . . . . . 1260 Shots 20 | . 1 . 6 . 5 . . . . . 3 4 . . . . . . . 1 Rammed 17 | . 1 . 4 . 2 . 2 1 . . 7 . . . . . . . . . Targets Rammed 21 | . 1 . 5 . 2 . 2 1 . . 7 . . . . . 1 . 2 . Kicked 3 | . . . . . . . . . . . . . . . . . 1 . 2 . Crushed 1 | . . . 1 . . . . . . . . . . . . . . . . . Highest Temperature 542 | . 27 338 362 260 159 324 351 218 258 193 148 319 247 341 311 226 332 353 496 542 Average Temperature 110 | . 7 104 82 132 37 135 102 79 152 82 48 112 94 183 156 93 119 101 145 144 Received Heat Transfer 3117 | . 66 264 279 . 252 66 132 36 483 48 95 334 9 9 9 9 63 225 74 664 Effects 31 | . . 2 1 . . . 1 . 2 . . 4 . 3 . . 1 . 5 12 Shutdowns 5 | . . . 1 . . . . . . . . . . . . . 1 . 2 1 Energy Bleed 6 | . . 1 . . . . . . . . . 1 . 2 . . . . 1 1 Interference 10 | . . 1 . . . . . . 2 . . 3 . . . . . . 1 3 Matter Decay 2 | . . . . . . . . . . . . . . . . . . . 1 1 Short Circuit 2 | . . . . . . . 1 . . . . . . . . . . . . 1 Damage (minor) 1 | . . . . . . . . . . . . . . 1 . . . . . . Damage (major) 4 | . . . . . . . . . . . . . . . . . . . . 4 Damage (core) 1 | . . . . . . . . . . . . . . . . . . . . 1 Siege Activations 2 | . . . . . . . . . 2 . . . . . . . . . . . Total Turns 29 | . . . . . . . . . 29 . . . . . . . . . . . Longest Duration 16 | . . . . . . . . . 16 . . . . . . . . . . . Martial Activations 1 | . . . . . . . . . . . . . . . . . . . . 1 Total Turns 14 | . . . . . . . . . . . . . . . . . . . . 14 Longest Duration 14 | . . . . . . . . . . . . . . . . . . . . 14 Shielding Activations . | . . . . . . . . . . . . . . . . . . . . . Robots Disrupted 2 | . . . . . . . . . . . . 1 1 . . . . . . . Combat Hostiles 1 | . . . . . . . . . . . . . 1 . . . . . . . Robots Corrupted 44 | . . . . . 5 . . 1 . 2 5 14 7 . . 1 2 . 5 2 Combat Hostiles 29 | . . . . . 2 . . . . 2 3 10 6 . . 1 2 . 1 2 Parts Fried 102 | . 1 . 2 1 8 . . 3 1 1 12 46 6 . . 4 5 . 9 3 Impact Corruptions 35 | . . . . . 19 . . 2 . . 1 . . . . . 4 1 8 . Robots Melted 8 | . . . . . . 2 1 . . 1 . . . 2 . 2 . . . . Combat Hostiles 7 | . . . . . . 2 1 . . 1 . . . 2 . 1 . . . . Parts Melted 35 | . . . . . 1 2 1 . 2 . . . . 2 . 3 3 2 13 6 Heat Transferred 21336 | . 50 346 200 . 625 537 2287 450 1040 850 100 205 237 1224 446 685 3416 1262 4224 3152 Parts Sabotaged . | . . . . . . . . . . . . . . . . . . . . . Parts Stolen . | . . . . . . . . . . . . . . . . . . . . . Parts Stripped . | . . . . . . . . . . . . . . . . . . . . . Power Chain Reactions 17 | . 1 2 3 . 2 . 1 . 1 1 1 3 1 . . 1 . . . . Alert | -11 -10 -10 -9 -9 -8 -7 -7 -7 -7 -5 -4 -4 -4 -4 -4 -3 -3 -2 -1 -1 ------- Run | Yrd Mat Min Mat Min Mat Fac Sto Rec Scr Fac Fac Ext Cet Arc Hub Res Qua Res Acc Com Maximum Alert Level 5 | . . . 3 1 3 2 1 . . 2 4 5 4 2 1 3 3 4 5 5 Low Security (%) 30 | 100 100 100 14 . 22 . 65 100 . 40 20 . . . . 13 . . . . Level 1 22 | . . . 56 100 21 50 34 . . 52 9 . . . 100 . 64 . . . Level 2 16 | . . . 16 . 33 49 . . . 7 10 32 . 100 . 69 24 53 2 . Level 3 8 | . . . 11 . 22 . . . . . 11 22 . . . 17 10 27 15 . Level 4 11 | . . . . . . . . . . . 47 28 100 . . . . 19 48 . Level 5 10 | . . . . . . . . . . . . 17 . . . . . . 23 95 High Security . | . . . . . . . . . . . . . . . . . . . 9 4 Max Security . | . . . . . . . . . . . . . . . . . . . . . Peak Influence 2968 | . 138 149 938 370 1017 474 374 168 . 446 1251 2146 1317 655 357 736 756 1191 2968 2552 Initial 1899 | . . . 43 360 140 453 148 138 . . 211 597 1201 523 219 168 352 425 707 1899 Average 531 | . 39 43 378 348 463 400 185 58 . 218 778 1139 1200 615 309 574 426 771 1617 2204 Influence Increases 27438 | . 284 485 1598 50 1228 82 680 188 . 654 1482 2311 378 176 252 855 1086 1096 2635 11918 Destroy 0b10 Robot/C 12540 | . 200 240 860 40 600 40 320 40 . 280 500 1180 200 80 120 140 540 540 1200 5420 Destroy 0b10 Robot/NC 945 | . 15 15 150 . 90 . 50 5 . 25 140 170 10 15 15 15 25 25 95 85 Destroy Leader 1610 | . 34 30 240 10 146 20 138 . . 62 128 132 10 . 30 64 34 84 232 216 Allied During Kill 3287 | . . . . . . . 97 22 . 87 201 501 54 23 39 66 146 156 333 1562 Successful Hack 151 | . 18 . 17 . 14 21 27 . . . 5 5 . . 11 . . 12 21 . Select Force Hacks 120 | . . . . . . . . 120 . . . . . . . . . . . . Disable Machine 870 | . . . 150 . 195 . 30 . . 45 150 15 . 30 15 45 75 . 30 90 Anti-Garrison Action 150 | . . . . . . . . . . . . . . . . 150 . . . . Destroy Structure 6837 | . 17 14 151 . 168 1 18 1 . 140 328 278 74 28 22 118 266 279 594 4340 Partial Spotted 30 | . . . . . . . . . . . . . . . . 15 . . . 15 Lose Combat Pursuer 330 | . . 60 30 . 15 . . . . 15 30 30 30 . . . . . 30 90 Active Sensor Use 200 | . . . . . . . . . . . . . . . . . . . 100 100 Miscellaneous 368 | . . 126 . . . . . . . . . . . . . 242 . . . . Influence Decreases 14401 | . 284 372 785 616 590 753 651 544 . 222 693 1386 1215 856 560 549 957 673 846 1849 Entered New Map 7084 | . . . 70 566 220 545 179 218 . . 221 624 945 786 410 153 275 331 472 1069 Time Decay 5525 | . 284 332 705 50 350 198 422 234 . 222 422 482 230 70 130 326 342 302 374 50 Lost Part 670 | . . 30 10 . 20 10 10 . . . 10 140 40 . 20 10 20 40 . 310 Lost Ally 822 | . . 10 . . . . 40 92 . . 40 140 . . . 60 20 . . 420 Purge Threat 300 | . . . . . . . . . . . . . . . . . 300 . . . Squads Dispatched 81 | . . . 9 . 7 . 10 . . 2 5 10 1 . 2 9 7 9 8 2 Investigation 16 | . . . 4 . 2 . 2 . . 1 1 2 . . . 1 . 1 1 1 Extermination 10 | . . . . . . . 2 . . 1 1 . 1 . . . 1 2 2 . Reinforcement 29 | . . . 4 . 2 . 3 . . . 3 3 . . 2 5 2 2 3 . Assault 11 | . . . 1 . . . . . . . . 5 . . . . 1 1 2 1 Garrison 15 | . . . . . 3 . 3 . . . . . . . . 3 3 3 . . Intercept . | . . . . . . . . . . . . . . . . . . . . . Searches Triggered . | . . . . . . . . . . . . . . . . . . . . . Construction Impeded 8 | . . . 2 . 1 . 1 . . . 1 3 . . . . . . . . Haulers Reinforced 9 | . . . . . . . 1 . . . 1 . . . . 3 . 2 2 . Active Scanning Responses 2 | . . . . . . . . . . . . . . . . . . . 1 1 Cargo Convoy Interrupts . | . . . . . . . . . . . . . . . . . . . . . Stealth | -11 -10 -10 -9 -9 -8 -7 -7 -7 -7 -5 -4 -4 -4 -4 -4 -3 -3 -2 -1 -1 --------- Run | Yrd Mat Min Mat Min Mat Fac Sto Rec Scr Fac Fac Ext Cet Arc Hub Res Qua Res Acc Com Distress Signals 49 | . . . 7 . 3 1 3 . . . 6 10 2 . . 3 3 1 3 7 Communications Jammed 1 | . . . . . . . . . . . 1 . . . . . . . . . Distress Signals 1 | . . . . . . . . . . . 1 . . . . . . . . . Times Spotted 586 | . 16 16 60 5 38 3 23 5 42 12 34 74 9 5 6 8 22 19 51 138 Peak Tracking Total 18 | . 3 5 7 3 6 2 6 3 18 2 7 10 5 1 2 2 5 6 6 18 Tactical Retreats 22 | . . 3 2 1 1 . . . . 1 2 2 2 . . . . . 2 6 Traps | -11 -10 -10 -9 -9 -8 -7 -7 -7 -7 -5 -4 -4 -4 -4 -4 -3 -3 -2 -1 -1 ------- Run | Yrd Mat Min Mat Min Mat Fac Sto Rec Scr Fac Fac Ext Cet Arc Hub Res Qua Res Acc Com Traps Triggered 20 | . 1 . 4 . 1 . 7 . . 1 2 . . . . 2 . 2 . . Indirectly 3 | . . . 1 . . . . . . . 2 . . . . . . . . . Trap Hack Attempts . | . . . . . . . . . . . . . . . . . . . . . Triggered . | . . . . . . . . . . . . . . . . . . . . . Disarmed . | . . . . . . . . . . . . . . . . . . . . . Reprogrammed . | . . . . . . . . . . . . . . . . . . . . . Reused 1 | . . . . . . . . . 1 . . . . . . . . . . . Traps Extracted . | . . . . . . . . . . . . . . . . . . . . . Installed 1 | . . . . . . . . . 1 . . . . . . . . . . . Triggered . | . . . . . . . . . . . . . . . . . . . . . Most Traps Carried 4 | . . 4 4 . . . . . 1 . . . . . . . . . . . Machines | -11 -10 -10 -9 -9 -8 -7 -7 -7 -7 -5 -4 -4 -4 -4 -4 -3 -3 -2 -1 -1 ---------- Run | Yrd Mat Min Mat Min Mat Fac Sto Rec Scr Fac Fac Ext Cet Arc Hub Res Qua Res Acc Com Machines Disabled 73 | . . . 10 . 13 . 2 . 12 3 10 3 . 2 1 4 5 . 2 6 Max in Single Turn 4 | . . . 2 . 2 . 1 . . 3 4 1 . . 1 1 1 . 1 2 Garrison Access 1 | . . . . . . . . . . . . . . . . 1 . . . . Network Hub 1 | . . . . . . . . . . . . . . . 1 . . . . . Energy Cycler 2 | . . . . . . . . . . . . 2 . . . . . . . . Machines Repaired . | . . . . . . . . . . . . . . . . . . . . . Machines Dismantled 1 | . . . . . . . . . . . . . . . 1 . . . . . Machines Sabotaged . | . . . . . . . . . . . . . . . . . . . . . Overloaded Fab Kills . | . . . . . . . . . . . . . . . . . . . . . Hacking | -11 -10 -10 -9 -9 -8 -7 -7 -7 -7 -5 -4 -4 -4 -4 -4 -3 -3 -2 -1 -1 --------- Run | Yrd Mat Min Mat Min Mat Fac Sto Rec Scr Fac Fac Ext Cet Arc Hub Res Qua Res Acc Com Machines Accessed 64 | . 5 . 9 . 6 4 8 7 4 2 3 3 . . 1 3 3 2 4 . Terminals 44 | . 5 . 7 . 3 4 7 2 . 2 1 3 . . 1 1 3 2 3 . Fabricators 4 | . . . . . . . . . . . 2 . . . . 1 . . 1 . Repair Stations 2 | . . . . . 1 . 1 . . . . . . . . . . . . . Recycling Units 5 | . . . . . . . . 5 . . . . . . . . . . . . Scanalyzers 3 | . . . 2 . 1 . . . . . . . . . . . . . . . Garrison Access 2 | . . . . . 1 . . . . . . . . . . 1 . . . . Total Hacks 177 | . 15 . 22 . 25 10 19 13 15 4 9 10 . . 2 11 5 8 9 . Successful 87 | . 6 . 11 . 17 3 7 7 15 1 6 1 . . 2 2 3 3 3 . Failed 89 | . 9 . 10 . 8 7 12 6 . 3 3 9 . . . 9 2 5 6 . Catastrophic 21 | . 1 . 1 . 1 2 3 2 . 1 2 2 . . . 2 2 1 1 . Database Lockouts 1 | . . . 1 . . . . . . . . . . . . . . . . . Manual 60 | . 11 . 13 . 11 1 3 9 . . 2 . . . 2 3 . 5 . . Terminals 111 | . 15 . 16 . 12 10 16 2 . 4 1 10 . . 2 3 5 8 7 . Fabricators 14 | . . . . . . . . . . . 8 . . . . 4 . . 2 . Repair Stations 6 | . . . . . 3 . 3 . . . . . . . . . . . . . Recycling Units 11 | . . . . . . . . 11 . . . . . . . . . . . . Scanalyzers 14 | . . . 6 . 8 . . . . . . . . . . . . . . . Garrison Access 6 | . . . . . 2 . . . . . . . . . . 4 . . . . Terminal Hacks 42 | . 4 . 3 . 2 3 3 . 15 1 1 1 . . 1 . 3 2 3 . Record 14 | . . . . . . . . . 14 . . . . . . . . . . . Robot Schematic 2 | . . . . . . 2 . . . . . . . . . . . . . . Robot Analysis 3 | . 3 . . . . . . . . . . . . . . . . . . . Prototype ID Bank 3 | . 1 . 1 . . . . . . . . 1 . . . . . . . . Open Door 8 | . . . . . . . 3 . . . 1 . . . . . 1 . 3 . Open DSF 1 | . . . . . . . . . . 1 . . . . . . . . . . Branch Access Points 3 | . . . 1 . 1 1 . . . . . . . . . . . . . . Unreport Threat 2 | . . . . . . . . . . . . . . . . . 2 . . . Locate Traps 3 | . . . 1 . 1 . . . . . . . . . . . . 1 . . Zone Layout 2 | . . . . . . . . . . . . . . . 1 . . 1 . . Proto ID Catalog 1 | . . . . . . . . . 1 . . . . . . . . . . . Fabricator Hacks 7 | . . . . . . . . . . . 5 . . . . 2 . . . . Load Schematic 3 | . . . . . . . . . . . 2 . . . . 1 . . . . Build 4 | . . . . . . . . . . . 3 . . . . 1 . . . . Repair Station Hacks 4 | . . . . . 2 . 2 . . . . . . . . . . . . . Scan Component 2 | . . . . . 1 . 1 . . . . . . . . . . . . . Repair 2 | . . . . . 1 . 1 . . . . . . . . . . . . . Recycling Unit Hacks 3 | . . . . . . . . 3 . . . . . . . . . . . . Report Inventory 3 | . . . . . . . . 3 . . . . . . . . . . . . Scanalyzer 10 | . . . 3 . 7 . . . . . . . . . . . . . . . Insert Component 3 | . . . 1 . 2 . . . . . . . . . . . . . . . Analyze 3 | . . . 1 . 2 . . . . . . . . . . . . . . . Retrieve Study 4 | . . . 1 . 3 . . . . . . . . . . . . . . . Garrison Access Hacks 1 | . . . . . 1 . . . . . . . . . . . . . . . Unlock Access 1 | . . . . . 1 . . . . . . . . . . . . . . . Unauthorized Hacks 20 | . 2 . 5 . 5 . 2 4 . . . . . . 1 . . 1 . . Terminals 16 | . 2 . 5 . 5 . 2 . . . . . . . 1 . . 1 . . Track 2 | . . . . . . . . . . . . . . . 1 . . 1 . . Assimilate 1 | . 1 . . . . . . . . . . . . . . . . . . . Botnet 3 | . . . . . 2 . 1 . . . . . . . . . . . . . Operators 1 | . 1 . . . . . . . . . . . . . . . . . . . Skim 9 | . . . 5 . 3 . 1 . . . . . . . . . . . . . Fabricators . | . . . . . . . . . . . . . . . . . . . . . Repair Stations . | . . . . . . . . . . . . . . . . . . . . . Recycling Units 4 | . . . . . . . . 4 . . . . . . . . . . . . Tunnel 4 | . . . . . . . . 4 . . . . . . . . . . . . Scanalyzers . | . . . . . . . . . . . . . . . . . . . . . Garrison Access . | . . . . . . . . . . . . . . . . . . . . . Data Cores Recovered 1 | . . . . . . . 1 . . . . . . . . . . . . . Used . | . . . . . . . . . . . . . . . . . . . . . Hacking Detections 49 | . 5 . 9 . 6 4 6 3 . 1 3 3 . . 1 3 2 2 1 . Full Trace Events 9 | . . . 2 . 1 . 2 1 . 1 . 1 . . . 1 . . . . Feedback Events 1 | . . . 1 . . . . . . . . . . . . . . . . . Corruption 1 | . . . 1 . . . . . . . . . . . . . . . . . Feedback Blocked . | . . . . . . . . . . . . . . . . . . . . . Robot Schematics Acquired 4 | . . . . . . 2 . . . . . . . . . . 2 . . . Robots Built 6 | . . . . . . . . . . . 4 . . . . 2 . . . . Authchips 3 | . . . . . . . . . . . 2 . . . . 1 . . . . Time 245 | . . . . . . . . . . . 201 . . . . 44 . . . . Total Robot Build Rating 24 | . . . . . . . . . . . 16 . . . . 8 . . . . Part Schematics Acquired 6 | . . . 1 . 2 . . . . . . . . . . . 3 . . . Parts Built 2 | . . . . . . . . . . . 2 . . . . . . . . . Authchips . | . . . . . . . . . . . . . . . . . . . . . Time 139 | . . . . . . . . . . . 139 . . . . . . . . . Total Part Build Rating 18 | . . . . . . . . . . . 18 . . . . . . . . . Part Studies Acquired 4 | . . . 1 . 3 . . . . . . . . . . . . . . . Parts Repaired 1 | . . . . . . . 1 . . . . . . . . . . . . . Time 87 | . . . . . 26 . 61 . . . . . . . . . . . . . Parts Recycled . | . . . . . . . . . . . . . . . . . . . . . Recycled Matter . | . . . . . . . . . . . . . . . . . . . . . Retrieved Matter . | . . . . . . . . . . . . . . . . . . . . . Retrieved Components . | . . . . . . . . . . . . . . . . . . . . . Parts Scanalyzed 3 | . . . 1 . 2 . . . . . . . . . . . . . . . Part Schematics Acquired 3 | . . . 1 . 2 . . . . . . . . . . . . . . . Parts Damaged . | . . . . . . . . . . . . . . . . . . . . . Bothacking | -11 -10 -10 -9 -9 -8 -7 -7 -7 -7 -5 -4 -4 -4 -4 -4 -3 -3 -2 -1 -1 ------------ Run | Yrd Mat Min Mat Min Mat Fac Sto Rec Scr Fac Fac Ext Cet Arc Hub Res Qua Res Acc Com Used RIF Installer . | . . . . . . . . . . . . . . . . . . . . . Robots Hacked 9 | . . . . . . . 1 . 2 1 2 . . . . 1 . 1 1 . Non-combat 3 | . . . . . . . . . . . 2 . . . . . . . 1 . Combat 6 | . . . . . . . 1 . 2 1 . . . . . 1 . 1 . . Robot Hacks Applied 13 | . . . . . . . 3 . 2 1 2 . . . . 1 . 2 2 . parse_system 10 | . . . . . . . 3 . 2 1 . . . . . 1 . 2 1 . find_chute 1 | . . . . . . . . . . . 1 . . . . . . . . . find_fabricator 1 | . . . . . . . . . . . 1 . . . . . . . . . find_station 1 | . . . . . . . . . . . . . . . . . . . 1 . Relay Couplers Released 5 | . . . . . . . . . . . . . . . . 2 . 3 . . Machine Destruction 2 | . . . . . . . . . . . . . . . . 2 . . . . Programmers 3 | . . . . . . . . . . . . . . . . . . 3 . . Fabnet Peak Effective % . | . . . . . . . . . . . . . . . . . . . . . Robots Rewired 13 | . . . . . . . . 6 . . . 7 . . . . . . . . Allies Hacked 1 | . . . . . . . . . . . . . . . . . . . . 1 Hacks Repelled . | . . . . . . . . . . . . . . . . . . . . . Allies | -11 -10 -10 -9 -9 -8 -7 -7 -7 -7 -5 -4 -4 -4 -4 -4 -3 -3 -2 -1 -1 -------- Run | Yrd Mat Min Mat Min Mat Fac Sto Rec Scr Fac Fac Ext Cet Arc Hub Res Qua Res Acc Com Total Allies 63 | . 1 . . . . . 10 6 2 . 4 7 . . . 6 . 1 . 26 Largest Group 10 | . 1 1 . . . . 10 10 9 1 3 6 1 1 1 5 2 1 1 8 Highest-Rated Group 658 | . 10 10 . . . . 173 180 574 456 530 658 446 446 446 566 476 574 544 549 Highest-Rated Ally 574 | . 10 10 . . . . 29 32 464 456 456 456 446 446 446 446 446 574 544 544 Total Orders 15 | . . . . . . . . 2 13 . . . . . . . . . . . STAY 5 | . . . . . . . . 1 4 . . . . . . . . . . . FOLLOW 10 | . . . . . . . . 1 9 . . . . . . . . . . . Ally Attacks 922 | . . . . . . . 38 18 91 33 48 148 21 3 16 39 43 50 63 311 Total Damage 43935 | . . . . . . . 529 233 6410 1910 3632 5691 984 187 806 953 2347 4648 5553 10052 Kills 266 | . . . . . . . 5 2 42 11 26 32 4 4 8 5 17 21 30 59 Allies Corrupted 2 | . . . . . . . 1 . . . . . . . . . . . . 1 Allies Melted . | . . . . . . . . . . . . . . . . . . . . . X0-1V1 Amusement Gains 691 | . 10 9 50 23 15 17 27 37 56 33 33 70 18 4 34 64 54 53 42 42 Average Entertainment 48 | . 10 7 17 18 24 34 42 31 45 50 45 40 76 60 36 55 75 87 87 96 Good Acts 86 | . 2 2 7 1 2 3 5 4 . . 8 4 1 1 3 3 4 6 3 27 Bad Acts 62 | . 1 4 9 1 7 1 1 . 2 1 4 8 1 1 2 4 1 4 5 5 Intel | -11 -10 -10 -9 -9 -8 -7 -7 -7 -7 -5 -4 -4 -4 -4 -4 -3 -3 -2 -1 -1 ------- Run | Yrd Mat Min Mat Min Mat Fac Sto Rec Scr Fac Fac Ext Cet Arc Hub Res Qua Res Acc Com Active Infowar (turns) 1844 | . 352 . . . . . . . . . 329 310 . . . . 346 . 141 366 Sensors 236 | . . . . . . . . . . . 7 . . . . . 229 . . . A.S.S. 507 | . . . . . . . . . . . . . . . . . . . 141 366 Traps 310 | . . . . . . . . . . . . 310 . . . . . . . . Seismic 352 | . 352 . . . . . . . . . . . . . . . . . . . Cloaking 116 | . . . . . . . . . . . . . . . . . 116 . . . Jamming 322 | . . . . . . . . . . . 322 . . . . . . . . . ECM 1 | . . . . . . . . . . . . . . . . . 1 . . . Robot Analysis Total 3 | . 3 . . . . . . . . . . . . . . . . . . . Derelict Logs Recovered 3 | . . 3 . . . . . . . . . . . . . . . . . . Drone Launches . | . . . . . . . . . . . . . . . . . . . . . Drone Recoveries . | . . . . . . . . . . . . . . . . . . . . . Exploration | -11 -10 -10 -9 -9 -8 -7 -7 -7 -7 -5 -4 -4 -4 -4 -4 -3 -3 -2 -1 -1 ------------- Run | Yrd Mat Min Mat Min Mat Fac Sto Rec Scr Fac Fac Ext Cet Arc Hub Res Qua Res Acc Com Turns Passed 19982 | 61 1192 1428 3090 111 793 402 1037 615 2936 612 1021 1242 488 157 264 722 766 671 965 1409 Spaces Moved 9321 | 36 439 556 1285 54 386 227 437 308 1646 334 432 476 154 63 225 612 319 340 551 441 Core 6 | 5 . . . . . . . . . . . 1 . . . . . . . . Treads 6798 | 31 439 556 1285 54 386 227 437 308 1646 334 432 295 6 . . . 125 237 . . Legs 1274 | . . . . . . . . . . . . 8 15 . . . 156 103 551 441 Wheels . | . . . . . . . . . . . . . . . . . . . . . Hover 1243 | . . . . . . . . . . . . 172 133 63 225 612 38 . . . Flight . | . . . . . . . . . . . . . . . . . . . . . Fastest Speed 50 | 50 160 165 150 152 152 160 155 162 148 162 157 157 88 88 88 88 109 108 108 110 Average Speed 168 | 144 161 236 212 157 159 165 160 162 166 162 160 218 279 91 88 95 165 145 112 167 Slowest Speed 457 | 160 165 255 246 158 165 245 165 163 245 163 162 457 447 94 88 109 185 160 118 220 Overloaded Moves . | . . . . . . . . . . . . . . . . . . . . . Propulsion Burnouts . | . . . . . . . . . . . . . . . . . . . . . Robots Hopped 2 | . . . . . . . . . . . . . . . . . . . . 2 Potential Cave-ins 2 | . . . . . . . . . . . . . . . . . . . . 2 Cave-ins Triggered . | . . . . . . . . . . . . . . . . . . . . . Exploration Rate (%) 42 | 4 56 98 91 23 59 6 74 55 81 9 14 62 56 69 20 16 41 13 14 23 Regions Visited 20 Branch Regions 11 Pre-discovered Areas 6 | . . 1 1 . . . . 4 . . . . . . . . . . . . Known Exits Taken 9 | . . . 1 1 1 1 . . . . . 1 . . . 1 1 1 1 . Unknown Exits Taken 11 | 1 1 1 . . . . 1 1 1 1 1 . 1 1 1 . . . . . Scrap Searched 13 | . . 2 . 1 . . . . 10 . . . . . . . . . . . Spaces Dug 11 | . . . . . . . . . . . . . . . . 3 . 3 2 3 Terrain Destroyed 4312 | . 13 15 171 . 249 . 14 . 13 40 40 125 18 3 3 4 11 12 171 3410 Melee 3 | . . . . . . . . . . . . . . . . . . 2 . 1 Projectile 160 | . . . 27 . . . 12 . 3 1 24 15 1 3 3 4 11 3 10 43 AOE 4149 | . 13 15 144 . 249 . 2 . 10 39 16 110 17 . . . . 7 161 3366 Terrain Rammed . | . . . . . . . . . . . . . . . . . . . . . Walls Destroyed . | . . . . . . . . . . . . . . . . . . . . . Machines Disabled . | . . . . . . . . . . . . . . . . . . . . . Actions | -11 -10 -10 -9 -9 -8 -7 -7 -7 -7 -5 -4 -4 -4 -4 -4 -3 -3 -2 -1 -1 --------- Run | Yrd Mat Min Mat Min Mat Fac Sto Rec Scr Fac Fac Ext Cet Arc Hub Res Qua Res Acc Com Total 12106 | 42 869 615 1496 63 469 241 680 410 1789 373 661 583 199 145 270 708 469 452 794 778 Wait 1060 | . 359 9 49 1 10 . 154 20 52 9 127 2 13 73 28 9 20 28 69 28 Move 9298 | 35 438 555 1284 53 386 226 436 307 1645 333 431 475 153 62 224 611 318 339 550 437 Hop 2 | . . . . . . . . . . . . . . . . . . . . 2 Pick Up 187 | . 26 8 25 . 8 2 18 5 22 5 12 7 5 . . 12 4 3 16 9 Fast Attach 169 | 6 4 1 2 . . 3 4 . . 5 4 13 5 1 3 15 30 16 23 34 Attach 89 | . 1 2 4 . 2 3 5 . 7 1 7 5 4 . . 6 6 3 5 28 Detach 39 | . . . . . . . . . 1 3 1 1 . . . 1 10 1 1 20 Swap 96 | 1 5 4 4 . 2 . 6 1 9 3 7 5 3 1 3 6 7 5 7 17 Drop 216 | . 7 2 27 . 3 2 13 5 22 . 9 7 8 1 1 20 26 17 34 12 Fire 684 | . 28 34 84 9 38 5 39 5 28 13 54 46 8 7 6 19 38 27 78 118 Melee 162 | . . . 10 . 19 . 3 2 2 1 2 9 . . 1 9 9 13 9 73 Ram . | . . . . . . . . . . . . . . . . . . . . . Kick 3 | . . . . . . . . . . . . . . . . . 1 . 2 . Crush 17 | . 1 . 5 . 1 . 2 1 . . 7 . . . . . . . . . Escape Stasis . | . . . . . . . . . . . . . . . . . . . . . Rewire 79 | . . . 2 . . . . 64 . . . 13 . . . . . . . . Trap 1 | . . . . . . . . . 1 . . . . . . . . . . . Miscellaneous 4 | . . . . . . . . . . . . . . . 4 . . . . . Route ------- -11/Scrapyard -10/Materials (discovered 3 exits: *Mat / [*Min] / [*Sub]) -10/Mines (discovered 3 exits: *Mat x2 / [*Exi]) -9/Materials (discovered 4 exits: *Mat x3 / *Min) -9/Mines -8/Materials (discovered 3 exits: *Fac x2 / Gar) -7/Factory (discovered 3 exits: *Sto / Low x2) -7/Storage (discovered 2 exits: [*Fac] / *Rec) -7/Recycling (discovered 2 exits: *Fac / *Scr) -7/Scraptown -5/Factory (discovered 2 exits: *Fac / [*Upp]) -4/Factory -4/Extension (discovered 3 exits: *Res x2 / *Cet) -4/Cetus (discovered 2 exits: *Res / [*Arc]) -4/Archives -4/Hub_04(d) -3/Research -3/Quarantine -2/Research -1/Access -1/Command History --------- Turn | Location | Event 3 | -11/Scrapyard | Discovered new exit (range 15) 62 | -11/Scrapyard | Entered Materials 292 | -10/Materials | Discovered new exit (range 10) 316 | -10/Materials | Build established: Mutant 455 | -10/Materials | Discovered new exit (range 11) 725 | -10/Materials | Discovered new exit (range 7) 845 | -10/Materials | Made a sacrifice at D.C.S.S. Altar Unit 845 | -10/Materials | Forcibly received Sfc. Transmogifier from X0-1V1 1106 | -10/Materials | X0-1V1 caused items to flee you 1219 | -10/Materials | X0-1V1 foreshadows a heat wave 1253 | -10/Materials | Items stopped fleeing you 1254 | -10/Materials | Entered Mines 1254 | -10/Mines | Accompanied by 1 ally 1266 | -10/Mines | Met a Derelict bent on vengeance 1268 | -10/Mines | X0-1V1 downgraded hostiles (x1) 1328 | -10/Mines | Core integrity fell below 50% 1411 | -10/Mines | Lost 3 parts (1p2w) 1510 | -10/Mines | Discovered new exit (range 9) 1686 | -10/Mines | Found a hidden stash of uninstalled traps 2104 | -10/Mines | Deemed a non-threat by the Exiles lab entrance 2107 | -10/Mines | Discovered new exit (range 5) 2221 | -10/Mines | Learned location of Zion (-7) 2337 | -10/Mines | Learned location of 1 exit from Materials 2351 | -10/Mines | X0-1V1 added 0b10 threat records associated with you (minor) 2354 | -10/Mines | Discovered new exit (range 6) 2407 | -10/Mines | Learned 4 Materials zone layouts 2436 | -10/Mines | Found a Scrap Suit stashed away for nefarious purposes 2501 | -10/Mines | X0-1V1 sent hostile S-10 Pest (x3) 2521 | -10/Mines | Found Scrap Suit 2682 | -10/Mines | Entered Materials 2682 | -9/Materials | Evolved 2 slots: Propulsion x1, Weapon x1 2683 | -9/Materials | Identified exit to Materials 2716 | -9/Materials | X0-1V1 announced a LAN party 2885 | -9/Materials | X0-1V1 sent you into danger 2979 | -9/Materials | Build established: Gunner 3237 | -9/Materials | Core integrity permanently improved by X0-1V1 (+200) 3270 | -9/Materials | Discovered exit to Materials (range 15) 3558 | -9/Materials | Discovered new exit (range 12) 4011 | -9/Materials | X0-1V1 revealed exit location to -8/Materials 4022 | -9/Materials | Build established: Mutant 4613 | -9/Materials | X0-1V1 sent you to a vault 4791 | -9/Materials | X0-1V1 activates XOMVISION 4923 | -9/Materials | Build established: Gunner 5126 | -9/Materials | Learned Storage stockpile data 5228 | -9/Materials | Learned 2 Materials zone layouts 5262 | -9/Materials | Learned 4 Materials zone layouts 5285 | -9/Materials | Loaded intel: 50 machine locations 5299 | -9/Materials | Central database locked down 5412 | -9/Materials | Loaded intel: 7 trap records 5449 | -9/Materials | Identified exit to Mines 5533 | -9/Materials | System corruption reached 10% 5772 | -9/Materials | Entered Mines 5835 | -9/Mines | Assembled infested the area 5840 | -9/Mines | Assisted by a Guerilla fighting off Assembled 5841 | -9/Mines | Discovered exit to Materials (range 9) 5861 | -9/Mines | Received a Rocket Launcher from a helpful Derelict 5879 | -9/Mines | System corruption reached 30% 5883 | -9/Mines | Entered Materials 5883 | -8/Materials | Evolved 2 slots: Propulsion x1, Utility x1 5884 | -8/Materials | Identified exit to Factory 5918 | -8/Materials | Mass support permanently improved by X0-1V1 (+13; -270 max core) 6119 | -8/Materials | Discovered exit to Factory (range 15) 6119 | -8/Materials | X0-1V1 sent you into danger 6136 | -8/Materials | System corruption reached 10% 6137 | -8/Materials | Identified exit to Garrison 6144 | -8/Materials | Build established: Mutant 6206 | -8/Materials | Garrison activated, responded to threat 6584 | -8/Materials | X0-1V1 sent you into danger 6601 | -8/Materials | X0-1V1 vaporized surrounding terrain (radius 23) 6676 | -8/Materials | Entered Factory 6676 | -7/Factory | Evolved 2 slots: Propulsion x1, Weapon x1 6716 | -7/Factory | Melee accuracy permanently improved by X0-1V1 (+9%; -90 max core) 6799 | -7/Factory | Identified exit to Storage 6799 | -7/Factory | Identified exit to Lower Caves 6811 | -7/Factory | Build established: Tank 7078 | -7/Factory | Entered Storage 7118 | -7/Storage | X0-1V1 opened Sealed Heavy Doors 7141 | -7/Storage | X0-1V1 activates XOMVISION 7169 | -7/Storage | Found Prototype Processor 7431 | -7/Storage | Met 01-MTF 7610 | -7/Storage | Garrison activated, responded to threat 7802 | -7/Storage | Repaired Broken Gatling Laser 7895 | -7/Storage | Discovered new exit (range 14) 7947 | -7/Storage | Assisted by bots powering up and referring to "LRC-V3" 8091 | -7/Storage | Discovered new exit (range 5) 8115 | -7/Storage | Entered Recycling 8115 | -7/Recycling | Accompanied by 9 allies (01-MTF) 8250 | -7/Recycling | Build established: Commander-Mutant 8309 | -7/Recycling | Lost 3 allies 8491 | -7/Recycling | X0-1V1 activates XOMVISION 8554 | -7/Recycling | Discovered new exit (range 11) 8665 | -7/Recycling | Scanned before Scraplab entrance 8702 | -7/Recycling | Entered Scraplab 8704 | -7/Recycling | Core integrity restored by X0-1V1 (+93) 8715 | -7/Recycling | Discovered new exit (range 2) 8730 | -7/Recycling | Entered Scraptown 8730 | -7/Scraptown | Accompanied by 8 allies 8730 | -7/Scraptown | System corruption cleaned by C-Scrubber 8830 | -7/Scraptown | Identified Exp. Targeting Computer 8870 | -7/Scraptown | Build established: Commander-Tank 9065 | -7/Scraptown | Visited UFD Registry 9066 | -7/Scraptown | Registered with UFD as "Arcunit" 9180 | -7/Scraptown | Visited Junk Repository 9224 | -7/Scraptown | Visited Curators Association 9270 | -7/Scraptown | Visited Botcube Research 9387 | -7/Scraptown | Visited Science Guys 9441 | -7/Scraptown | Visited Derelict Rescue Squad 9482 | -7/Scraptown | Visited Junk Repository 9507 | -7/Scraptown | Visited Abandonware Association 9524 | -7/Scraptown | Learned abandonware demo "REPAIR.EXE" 9561 | -7/Scraptown | Visited Observation Area 9715 | -7/Scraptown | Visited SPCMW 9726 | -7/Scraptown | Visited Awakened 9758 | -7/Scraptown | Visited Bundlers 9913 | -7/Scraptown | Heard Great Nut preacher, LISTEN AND RECITE! 9935 | -7/Scraptown | Visited Cyclists 9946 | -7/Scraptown | Entered Cyclist Reading Room 9981 | -7/Scraptown | Visited Scrapoid Research Area 10063 | -7/Scraptown | Build established: Commander-Gunner 10177 | -7/Scraptown | Discovered new exit (range 11) 10404 | -7/Scraptown | Found Lrg. Botcube 10557 | -7/Scraptown | Warned about trapping Scraptown 10664 | -7/Scraptown | Found Mobile Assembly Unit 10969 | -7/Scraptown | Build established: Commander-Tank 11111 | -7/Scraptown | Lrg. Botcube activated 11141 | -7/Scraptown | Lrg. Botcube completed mutation into wheeled form, armed with 2 guns, 2 launchers 11319 | -7/Scraptown | Visited Shadow of the Wyrm 11332 | -7/Scraptown | X0-1V1 brought Wyrm Statue to life 11332 | -7/Scraptown | Attacked by Scraptown defenders 11352 | -7/Scraptown | X0-1V1 caused items to flee you 11361 | -7/Scraptown | Allies destroyed Triborg 11362 | -7/Scraptown | Attached CPS modules to Chaos Wyrm 11382 | -7/Scraptown | Lost 9 allies 11421 | -7/Scraptown | Core integrity fell below 50% 11450 | -7/Scraptown | Lost 3 parts (2n1w) 11454 | -7/Scraptown | Destroyed 15 combat bots 11622 | -7/Scraptown | Build established: Tank 11666 | -7/Scraptown | Entered Factory 11666 | -5/Factory | Accompanied by 1 ally 11666 | -5/Factory | Evolved 4 slots: Power x1, Propulsion x1, Utility x1, Weapon x1 11724 | -5/Factory | Identified exit to DSF 11906 | -5/Factory | Discovered new exit (range 15) 11934 | -5/Factory | Discovered new exit (range 10) 12278 | -5/Factory | Entered another Factory area 12278 | -4/Factory | Accompanied by 1 ally 12278 | -4/Factory | Evolved 2 slots: Propulsion x1, Utility x1 12519 | -4/Factory | Fabricated P-60 Hacker? 12572 | -4/Factory | X0-1V1 whisked you away to safety 12601 | -4/Factory | Allied Derelicts emerged from ambush trap array 12718 | -4/Factory | Lost 3 allies 13098 | -4/Factory | X0-1V1 enhanced Transport squad support 13136 | -4/Factory | Fabricated Cmb. Linear Gravjet? 13167 | -4/Factory | X0-1V1 announced a LAN party 13226 | -4/Factory | Discovered new exit (range 10) 13280 | -4/Factory | Fabricated P-60 Hacker? 13299 | -4/Factory | Entered Extension 13299 | -4/Extension | Accompanied by 3 allies 13419 | -4/Extension | Lost 4 allies 13478 | -4/Extension | Identified exit to Cetus 13478 | -4/Extension | X0-1V1 revealed exit location to -4/Cetus 13509 | -4/Extension | X0-1V1 destroyed Energy Cycler 13509 | -4/Extension | Energy Cycler disabled 13509 | -4/Extension | Rescued a captive Derelict 13510 | -4/Extension | Rescued a captive Derelict 13510 | -4/Extension | Rescued a captive Derelict 13511 | -4/Extension | Rescued a captive Derelict 13512 | -4/Extension | Rescued a captive Derelict 13512 | -4/Extension | Rescued a captive Derelict 13539 | -4/Extension | X0-1V1 vaporized surrounding terrain (radius 19) 13549 | -4/Extension | First assault squad dispatched 13625 | -4/Extension | Spotted B-86 Titan 13625 | -4/Extension | Spotted B-86 Titan 13646 | -4/Extension | Allies destroyed B-86 Titan 13651 | -4/Extension | Destroyed B-86 Titan 13666 | -4/Extension | Discovered new exit (range 14) 13678 | -4/Extension | System corruption reached 10% 13685 | -4/Extension | X0-1V1 sent someone to keep an eye on you 13797 | -4/Extension | Found Prototype Device 13797 | -4/Extension | Identified Adv. EM Shield 13848 | -4/Extension | X0-1V1 vaporized surrounding terrain (radius 22) 14049 | -4/Extension | Lost 3 parts (1n2w) 14219 | -4/Extension | X0-1V1 put everyone to sleep 14349 | -4/Extension | Disrupted transfer network 14367 | -4/Extension | Destroyed 8 combat bots 14376 | -4/Extension | Lost 4 parts (2p1n1u) 14428 | -4/Extension | Lost 3 parts (1n1u1w) 14469 | -4/Extension | Discovered new exit (range 15) 14523 | -4/Extension | Disrupted transfer network 14541 | -4/Extension | Entered Cetus 14541 | -4/Cetus | Accompanied by 1 ally 14561 | -4/Cetus | Spotted Cetus Guard 14561 | -4/Cetus | Spotted Cetus Guard 14563 | -4/Cetus | Spotted Cetus Guard 14572 | -4/Cetus | Spotted Cetus Guard 14577 | -4/Cetus | Allies destroyed Cetus Guard 14579 | -4/Cetus | Destroyed Cetus Guard 14579 | -4/Cetus | Destroyed Cetus Guard 14604 | -4/Cetus | Lost 6 parts (3n1u2w) 14620 | -4/Cetus | System corruption reached 30% 14844 | -4/Cetus | Discovered new exit (range 15) 14907 | -4/Cetus | Build established: Scavenger-Bomber 14908 | -4/Cetus | Spotted Cetus Guard 14908 | -4/Cetus | Spotted Cetus Guard 14919 | -4/Cetus | Destroyed Cetus Guard 14919 | -4/Cetus | Destroyed Cetus Guard 14920 | -4/Cetus | Destroyed Cetus Guard 14921 | -4/Cetus | Destroyed Cetus Guard 14937 | -4/Cetus | Discovered new exit (range 15) 14948 | -4/Cetus | Met Revision 17 15029 | -4/Cetus | Entered Archives 15029 | -4/Archives | Accompanied by 1 ally 15156 | -4/Archives | Discovered new exit (range 14) 15186 | -4/Archives | Entered Hub_04(d) 15186 | -4/Hub_04(d) | Accompanied by 1 ally 15194 | -4/Hub_04(d) | Discovered new exit (range 16) 15280 | -4/Hub_04(d) | X0-1V1 caused items to flee you 15365 | -4/Hub_04(d) | Network Hub disabled 15450 | -4/Hub_04(d) | Entered Research 15450 | -3/Research | Accompanied by 1 ally 15450 | -3/Research | Evolved 2 slots: Propulsion x1, Utility x1 15490 | -3/Research | Build established: Bomber 15497 | -3/Research | Garrison activated, responded to threat 15537 | -3/Research | System corruption reached 10% 15546 | -3/Research | X0-1V1 added 0b10 threat records associated with you (major) 15582 | -3/Research | Fabricated P-60 Hacker? 15602 | -3/Research | Garrison activated, responded to threat 15632 | -3/Research | X0-1V1 redirected Transport squads to designated parking area 15650 | -3/Research | Revision forces began assault on 0b10 15681 | -3/Research | Met up with Revision 17++ 15682 | -3/Research | Attached CPS modules to Revision 17++ 15792 | -3/Research | Found Prototype Device 15792 | -3/Research | Identified Adv. Kinecellerator 15996 | -3/Research | X0-1V1 sent you to a vault 16072 | -3/Research | Discovered new exit (range 5) 16079 | -3/Research | Identified exit to Quarantine 16126 | -3/Research | Murdered Revision 17++ 16150 | -3/Research | Research terminal network offline 16172 | -3/Research | Entered Quarantine 16172 | -3/Quarantine | Accompanied by 2 allies 16184 | -3/Quarantine | Found Alien Artifact 16195 | -3/Quarantine | Lost 3 allies 16200 | -3/Quarantine | Found Alien Artifact 16200 | -3/Quarantine | Identified Core Reset Matrix 16200 | -3/Quarantine | Identified Subatomic Replicator 16200 | -3/Quarantine | Used Core Reset Matrix 16204 | -3/Quarantine | Detected hypermatrix surge 16204 | -3/Quarantine | Sensed 2 artifacts in vicinity 16211 | -3/Quarantine | Spotted Alpha 7 16217 | -3/Quarantine | Attached CPS modules to Alpha 7 16251 | -3/Quarantine | Destroyed Alpha 7 16280 | -3/Quarantine | Found Prototype Device 16280 | -3/Quarantine | Identified Exp. ECM Suite 16293 | -3/Quarantine | Identified exit to Research 16293 | -3/Quarantine | X0-1V1 revealed exit location to -2/Research 16295 | -3/Quarantine | Found Prototype Processor 16295 | -3/Quarantine | Identified Exp. Targeting Computer 16304 | -3/Quarantine | Found Prototype Processor 16304 | -3/Quarantine | Identified Exp. Target Analyzer 16308 | -3/Quarantine | Found Prototype Ballistic Gun 16308 | -3/Quarantine | Identified Multirail 16340 | -3/Quarantine | Found Sigix Terminator 16441 | -3/Quarantine | Build established: Scavenger-Bomber 16570 | -3/Quarantine | Garrison activated, responded to threat 16609 | -3/Quarantine | X0-1V1 sent you to a vault 16613 | -3/Quarantine | Found Prototype Device 16613 | -3/Quarantine | Identified Exp. Cloaking Device 16617 | -3/Quarantine | Found Prototype Device 16617 | -3/Quarantine | Identified Exp. Phase Shifter 16630 | -3/Quarantine | Weapon slot count temporarily expanded by X0-1V1 (+2) 16652 | -3/Quarantine | Found Prototype Device 16652 | -3/Quarantine | Identified Imp. Particle Accelerator 16663 | -3/Quarantine | Found Prototype Slashing Weapon 16663 | -3/Quarantine | Identified Hvy. Scimitar of Distortion 16690 | -3/Quarantine | Found Prototype Device 16690 | -3/Quarantine | Identified Exp. EM Shield 16848 | -3/Quarantine | Found Phase Redirector 16908 | -3/Quarantine | Build established: Scavenger-Executioner 16922 | -3/Quarantine | First assault squad dispatched 16938 | -3/Quarantine | Entered Research 16938 | -2/Research | Accompanied by 1 ally 16938 | -2/Research | Evolved 2 slots: Power x1, Propulsion x1 16966 | -2/Research | Chaos Wyrm evolved into Greater Chaos Wyrm 16977 | -2/Research | Found Wyrmplate 16979 | -2/Research | X0-1V1 sent you into danger 16981 | -2/Research | Attached CPS modules to Greater Chaos Wyrm 17052 | -2/Research | Identified exit to Access 17052 | -2/Research | X0-1V1 revealed exit location to -1/Access 17071 | -2/Research | Garrison activated, responded to threat 17136 | -2/Research | Weapon slot count reverted to normal (-2) 17165 | -2/Research | X0-1V1 put everyone to sleep 17178 | -2/Research | Spotted B-90 Cyclops 17188 | -2/Research | First assault squad dispatched 17226 | -2/Research | Allies destroyed B-90 Cyclops 17235 | -2/Research | System corruption reached 10% 17255 | -2/Research | Lost 3 parts (1u2w) 17609 | -2/Research | Entered Access 17609 | -1/Access | Accompanied by 1 ally 17609 | -1/Access | Evolved 2 slots: Utility x2 17613 | -1/Access | Build established: Scavenger-Bomber 17635 | -1/Access | Identified exit to Command 17635 | -1/Access | X0-1V1 revealed exit location to -1/Command 17878 | -1/Access | Spotted B-99 Colossus 17910 | -1/Access | Allies destroyed B-99 Colossus 18015 | -1/Access | Found Exp. Targeting Computer 18058 | -1/Access | Found Prototype Processor 18058 | -1/Access | Identified Exp. Melee Analysis Suite 18065 | -1/Access | Found Exp. Melee Analysis Suite 18069 | -1/Access | Found Exp. Melee Analysis Suite 18072 | -1/Access | Found Exp. Melee Analysis Suite 18105 | -1/Access | Found Unknown Device 18105 | -1/Access | Identified Launcher Loader 18359 | -1/Access | First assault squad dispatched 18400 | -1/Access | X0-1V1 enhanced Transport squad support 18405 | -1/Access | Destroyed 11 combat bots 18441 | -1/Access | Found Exp. EM Shield 18480 | -1/Access | High security lockdown imminent 18560 | -1/Access | High security lockdown engaged 18574 | -1/Access | Entered Command 18574 | -1/Command | Accompanied by 1 ally 18692 | -1/Command | High security lockdown imminent 18702 | -1/Command | Found Emergency Decompositor 18702 | -1/Command | Installed Emergency Decompositor, gained core-matter conversion pathway 18746 | -1/Command | Used Subatomic Replicator to create Supercharged Sigix Terminator 18756 | -1/Command | Fired Supercharged Sigix Terminator 18756 | -1/Command | MAIN.C activated Command garrisons 18777 | -1/Command | Destroyed 172 combat bots 18783 | -1/Command | X0-1V1 vaporized surrounding terrain (radius 21) 18787 | -1/Command | Lost 5 parts (2p1n1u1w) 18946 | -1/Command | System corruption reached 10% 18975 | -1/Command | System corruption reached 30% 19005 | -1/Command | Found Prototype Protection 19005 | -1/Command | Identified Wyrmscale 19011 | -1/Command | Found Wyrmscale 19013 | -1/Command | Core integrity fell below 50% 19015 | -1/Command | Found Wyrmscale 19018 | -1/Command | Found Wyrmscale 19023 | -1/Command | Found Exp. Weapon Cycler 19027 | -1/Command | Lost 13 parts (3p5n2u3w) 19041 | -1/Command | X0-1V1 whisked you away to safety 19200 | -1/Command | X0-1V1 downgraded hostiles (x1) 19206 | -1/Command | Build established: Scavenger-Mutant 19396 | -1/Command | X0-1V1 sent allied Lightning (x3) 19437 | -1/Command | P-80 Master assimilated allied Lightning 19438 | -1/Command | Spotted Lightning 19453 | -1/Command | Destroyed Lightning 19542 | -1/Command | Lost 3 parts (3w) 19572 | -1/Command | P-80 Master assimilated allied Lightning 19577 | -1/Command | Spotted Lightning 19577 | -1/Command | X0-1V1 sent allied Striker (x3) 19586 | -1/Command | P-80 Master assimilated allied Striker 19591 | -1/Command | Spotted Striker 19594 | -1/Command | Allies destroyed Lightning 19613 | -1/Command | Allies destroyed Striker 19624 | -1/Command | Emitted hypermatrix ping 19629 | -1/Command | Assembled emerged from beneath the floor 19801 | -1/Command | Lost 7 allies 19820 | -1/Command | X0-1V1 turns hostiles against one another 19833 | -1/Command | X0-1V1 sent allied H-81 Overseer (x3) 19944 | -1/Command | Lost 3 allies 19954 | -1/Command | Core integrity fell below 20% 19960 | -1/Command | Assembled emerged from beneath the floor 19984 | -1/Command | Smashed by cave-in Last Messages --------------- 19967_ Slug penetrates as-07258. 19967_ as-07258 destroyed. 19970_ Emergency decomposition triggered (matter +200, max core -10). 19971_ Slug penetrates Wall. 19972_ S-43 Plague destroyed. 19976_ Power failure, Quantum Reactor shutdown. 19976_ Slug penetrates Wall. 19979_ Destroyed Quantum Reactor. X0-1V1's Piety Tracker suddenly appears amidst shimmering waves of color. 19981_ Penetrated by Slug. 19982_ Myomer Leg broken. 19982_ Overheating: Short circuit. 19982_ Slug penetrates Wall. 19982_ Slug penetrates P-80 Master. 19982_ Slug penetrates Wall. 19983_ JSVDC1SCWCIXLQ|5 19983_ Slug penetrates Wall. 19983_ P-80 Master destroyed. 19984_ Overheating: Core damaged (-254). 19984_ X0-1V1 giggles madly! Map ----- +----------------------------------------------------+ | =%" " " [=##? | | % *" " " !!%#? | | ""%""# " " ! == !!##? | | %" " # # == *#?? | | "%# #=* # %= #?? | | ""/#""##"%[* ##/+###"####? | | "!=%=%# [!=%= "#? | | #[[! =#% = [ #?? | | " = %" ! %"* """ #?? | | """%[ | % ""T"" #?? | | "" =%!% % = "" "" #?? | | = * % #?? | | % %[*% ==%# % #?? | | [ % = =%* #?? | | %[ #% ######?? | | % % * = % #??? | | # %= % #??? | | %% = !! /#??? | | ! !! %#??? | | % % ! #??? | | !%/ % #??? | | % % #??? | | % % % % [#??? | | % %% % % ##?? | | # ### ##;;#=## | | # % # % [p=!@# | | ] #h %xs # | | = =% %%; % % # | | # % # % % # | | % % %# """!""" # | | = % # """T""" !# | | / % %% ############# | | ##### % ????????????? | | ?????? = ????????????? | | ???????# % ????????????? | | ??????? ?????????????????? | | ??????????????????????????? | | ??????????????????????????? | | ??????????????????????????? | | ??????????????????????????? | | ??????????????????????????? | | ??????????????????????????? | | ??????????????????????????? | | ??????????????????????????? | | ??????????????????????????? | | ??????????????????????????? | | ??????????????????????????? | | ??????????????????????????? | | ??????????????????????????? | | ??????????????????????????? | +----------------------------------------------------+ Best States ------------- Heat Dissipation 197 Coolant Potential 80 Energy Generation 96 Energy Capacity 1945 Matter Stores 1000 Matter Capacity 1000 Sight Range 20 Robot Scan Range 20 Terrain Scan Density 10 Jamming Range 16 Cloak Strength 4 Armor Coverage 3450 Resistance: KI 45 Resistance: TH 18 Resistance: EX 50 Resistance: EM 95 Utility Shielding 90 Weapon Shielding 15 Weapon Cycling 25 Evasion (%) 70 Targeting Accuracy 12 Melee Accuracy 12 Recoil Reduction 7 Energy Filtering 50 Particle Charging 25 Salvage Targeting 6 Offensive Hacking 14 Authchip Count 4 Item Schematics ----------------- Coolant Network | -3/Quarantine | Archive Exp. Target Analyzer | -3/Quarantine | Archive Centrium Heavy Treads | -3/Quarantine | Archive Robot Schematics ------------------ R-10 Processor | -3/Quarantine | Archive B-74 Champion | -3/Quarantine | Archive Fabricated ------------ P-60 Hacker | x2 | -4/Factory | Authchip Cmb. Linear Gravjet | x2 | -4/Factory | Preloaded P-60 Hacker | x2 | -4/Factory | Authchip P-60 Hacker | x2 | -3/Research | Authchip Repaired ---------- Gatling Laser | 37% | -7/Storage | Broken Studied --------- None Alien Tech Used ----------------- Core Reset Matrix Phase Redirector Emergency Decompositor Subatomic Replicator Supercharged Sigix Terminator Achievements -------------- Frienemies I'm Taking You All With Me Launcher Specialist Challenges ------------ None Game ------ Seed MassUtilityInverter Manual? 0 Play Time 04:34:57 Cumulative 1747.2 hours Start 2026.08.23 @ 13:36:50 End 2026.08.23 @ 18:28:45 Sessions 1 Manual Loads 0 Difficulty Rogue Special Mode None Game No. 528 Rogue 520 Adventurer 4 Explorer 4 Win Type - Total 69 Types 31/9/4/4/2/5/7/2/3/2 Lore% 97 Gallery% 96 Achievement% 92 Wizard Run 0 Options --------- Layout 0 ASCII 0 Keyboard 0 Movement Numpad Keybinds 0 Fullscreen 2 Font 18/SmallcapsGlow Map View 76x50 Zoom Use 1% Tactical HUD 1 Map Filters NONE Filters NONE Steam 1 RUN: 74c7fb62-bb9e-4fe5-841d-b7f892f81e8d